Cogmind - Beta 17 @@@ ROGUE MODE // 2026.07.10 @ 12:01:59 Player: Hadza Result: Destroyed by S-10 Pest with Light Assault Rifle Performance ------------- Evolutions (1) 500 Regions Visited (3) 600 Robots Destroyed (18) 90 Value Destroyed (455) 455 Prototype IDs (0) 0 Alien Tech Used (0) 0 Bonus (0) 0 TOTAL SCORE: 1645 Bonus ------- None Cogmind --------- Core Integrity 0/400 Matter 156/300 Energy 99/100 System Corruption 2% Temperature Cool (0) Movement Core (150) Ox2 Location -9/Storage Parts ------- > --- POWER (1) -------- (None) > --- PROPULSION (2) --- (None) > --- UTILITY (4) ------ Improved Heat Sink Small Storage Unit Structural Scanner > --- WEAPON (2) ------- (None) > --- INVENTORY (8) ---- (None) Peak State ------------ > --- POWER ------------ Ion Engine > --- PROPULSION ------- Light Treads Light Treads > --- UTILITY ---------- Small Storage Unit Targeting Computer Targeting Computer Light Armor Plating > --- WEAPON ----------- Particle Gun Heavy Assault Rifle > --- INVENTORY -------- Light Ion Engine Light Treads Improved Heat Sink Structural Scanner Light Armor Plating [Rating: 11] Favorites ----------- Power Ion Engine Engine Ion Engine Propulsion Light Treads Treads Light Treads Utility Targeting Computer Device Improved Heat Sink Storage Small Storage Unit Processor Targeting Computer Protection Light Armor Plating Weapon Light Assault Rifle Energy Gun Particle Gun Ballistic Gun Light Assault Rifle Build | -11 -10 -9 -9 ------- Run | Yrd Mat Mat Sto Slots Evolved 2 | . . 2 . Power . | . . . . Propulsion . | . . . . Utility 2 | . . 2 . Weapon . | . . . . Parts Attached 16 | 7 1 2 6 Power 2 | 2 . . . Engine 2 | 2 . . . Core . | . . . . Reactor . | . . . . Propulsion 3 | 2 . . 1 Treads 3 | 2 . . 1 Leg . | . . . . Wheel . | . . . . Hover . | . . . . Flight . | . . . . Utility 7 | 1 1 2 3 Device 2 | . . . 2 Storage 1 | 1 . . . Processor 2 | . 1 1 . Hackware . | . . . . Protection 2 | . . 1 1 Artifact . | . . . . Weapon 4 | 2 . . 2 Energy Gun 1 | . . . 1 Energy Cannon . | . . . . Ballistic Gun 3 | 2 . . 1 Ballistic Cannon . | . . . . Launcher . | . . . . Special Weapon . | . . . . Impact Weapon . | . . . . Slashing Weapon . | . . . . Piercing Weapon . | . . . . Special Melee Weapon . | . . . . Unidentified Prototypes . | . . . . Parts Lost 11 | . . . 11 Power 2 | . . . 2 Propulsion 3 | . . . 3 Utility 4 | . . . 4 Weapon 2 | . . . 2 Highest Loss Streak 9 | . . . 9 To Critical Strikes . | . . . . Average Backups 5 | 1 5 7 4 Power . | . 1 1 . Propulsion . | . . 1 . Utility 3 | . 3 4 2 Weapon . | . . 1 . Tool/Special . | . . . . Unused Backups 1 | . 1 . . Power . | . . . . Propulsion . | . . . . Utility 1 | . 1 . . Weapon . | . . . . Tool/Special . | . . . . Average Slot Usage (%) 91 | . 98 83 86 Engine 12 | . 14 11 9 Treads 23 | . 27 22 17 Storage 12 | . 14 11 11 Processor 14 | . 12 14 18 Protection 2 | . . 3 8 Energy Gun 1 | . . . 8 Ballistic Gun 22 | . 28 22 9 Peak Build Rating 11 | 6 8 9 11 Average Rating 7 | 4 7 8 9 On Entrance 5 | . 6 8 9 Avg Prop Armor Cover (%) . | . . . . Naked Turns . | . . . . Heaviest Build 19 | 12 12 15 19 Greatest Support 40 | 40 40 40 40 Greatest Overweight (x) 3 | 2 . . 3 Average Overweight (x) . | . . . . Largest Inventory Capacity 8 | 8 8 8 8 Average Capacity 7 | 7 8 8 8 Most Carried 8 | 5 8 8 7 Average Carried 5 | 1 5 7 4 Final Capacity 8 | 8 8 8 8 Final Carried 8 | 1 8 6 . Class Distribution -------------------- 100% | Mutant Dominant Class ---------------- Mutant | -10/Materials Mutant | -9/Materials Mutant | -9/Storage Resources | -11 -10 -9 -9 ----------- Run | Yrd Mat Mat Sto Matter Collected 385 | 172 133 19 61 Remotely . | . . . . Salvage Created 584 | . 276 19 289 Parts 38 | . 20 1 17 Haulers Intercepted 1 | . 1 . . Recyclers Shooed 1 | . . . 1 Parts Field Recycled . | . . . . Retrieved Matter . | . . . . Parts Self-Destructed . | . . . . Prevented . | . . . . Parts Restored . | . . . . Kills | -11 -10 -9 -9 ------- Run | Yrd Mat Mat Sto Combat Hostiles Destroyed 15 | . 9 . 6 Guns 15 | . 9 . 6 Classes Destroyed 6 | . 3 1 2 Builder 1 | . . . 1 Hauler 1 | . 1 . . Operator 1 | . . 1 . Swarmer 6 | . 6 . . Grunt 6 | . 3 . 3 Sentry 3 | . . . 3 Best Kill Streak 6 | . 5 1 6 Combat Bots Only 6 | . 4 . 6 Max Kills in Single Turn 2 | . 2 1 1 Gunslinging 1 | . 1 . . Exploded . | . . . . Melee . | . . . . Uniques/NPCs Destroyed . | . . . . Combat | -11 -10 -9 -9 -------- Run | Yrd Mat Mat Sto Hostile Shots Fired 181 | . 59 . 122 Missed 48 | . 19 . 29 Hits 133 | . 40 . 93 Projectile 133 | . 40 . 93 Damage Taken 1549 | . 372 73 1104 Core 504 | . 99 73 332 Absorbed by Shields . | . . . . Regen/Repaired (Parts) 102 | . 102 . . Core Remaining (%) 80 | 100 60 . . Volleys Fired 69 | . 37 8 24 Largest 2 | . 2 2 2 Hottest 88 | . 40 40 88 Shots Fired 133 | . 74 16 43 Gun 133 | . 74 16 43 Cannon . | . . . . Launcher . | . . . . Special . | . . . . Kinetic 109 | . 74 16 19 Thermal 24 | . . . 24 Explosive . | . . . . Electromagnetic . | . . . . Robot Hit Streak 23 | . 10 3 23 Robot Miss Streak 6 | . 6 2 1 Penetration Max . | . . . . Secondary Targets 2 | . 1 . 1 Max Gunslinging Chain 1 | . 1 . 1 Shots Hit Robots 95 | . 49 8 38 Core Hits 40 | . 21 5 14 Critical Kills . | . . . . Critical Parts Destroyed 1 | . 1 . . Critical Strikes 4 | . 1 . 3 Burn 3 | . . . 3 Destroy 1 | . 1 . . Melee Attacks . | . . . . Impact . | . . . . Slashing . | . . . . Piercing . | . . . . Sneak Attacks . | . . . . Combat Hostiles . | . . . . Follow-up Attacks . | . . . . Damage Inflicted 1078 | . 411 52 615 Guns 1063 | . 411 52 600 Cannons . | . . . . Explosions . | . . . . Melee . | . . . . Ramming 15 | . . . 15 Kinetic 719 | . 411 52 256 Thermal 344 | . . . 344 Explosive . | . . . . Electromagnetic . | . . . . Impact . | . . . . Slashing . | . . . . Piercing . | . . . . Highest Corruption 2 | . . . 2 Average Corruption 2 | . . . 2 Corruption Purged . | . . . . Corruption Blocked . | . . . . Overload Shots . | . . . . Overflow Damage . | . . . . Projectiles . | . . . . Explosions . | . . . . Melee . | . . . . Knockbacks . | . . . . Impact . | . . . . Kinetic . | . . . . Secondary . | . . . . Self-Inflicted Damage 78 | . . 73 5 Shots 1 | . . 1 . Rammed 6 | . . . 6 Targets Rammed 6 | . . . 6 Kicked . | . . . . Crushed . | . . . . Highest Temperature 558 | . 18 . 558 Average Temperature 259 | . 9 . 298 Received Heat Transfer 321 | . 81 . 240 Effects 19 | . . . 19 Shutdowns 3 | . . . 3 Energy Bleed 3 | . . . 3 Interference 2 | . . . 2 Matter Decay 3 | . . . 3 Short Circuit 1 | . . . 1 Damage (minor) 1 | . . . 1 Damage (major) 6 | . . . 6 Siege Activations . | . . . . Martial Activations . | . . . . Shielding Activations . | . . . . Robots Disrupted . | . . . . Combat Hostiles . | . . . . Robots Corrupted . | . . . . Combat Hostiles . | . . . . Parts Fried . | . . . . Impact Corruptions . | . . . . Robots Melted . | . . . . Combat Hostiles . | . . . . Parts Melted 2 | . . . 2 Heat Transferred 1036 | . . . 1036 Parts Sabotaged . | . . . . Parts Stolen . | . . . . Parts Stripped . | . . . . Power Chain Reactions . | . . . . Alert | -11 -10 -9 -9 ------- Run | Yrd Mat Mat Sto Maximum Alert Level . | . . . . Low Security (%) 100 | 100 100 100 100 Level 1 . | . . . . Level 2 . | . . . . Level 3 . | . . . . Level 4 . | . . . . Level 5 . | . . . . High Security . | . . . . Max Security . | . . . . Peak Influence 141 | . 107 70 141 Initial 3 | . . . 3 Average 24 | . 35 12 20 Influence Increases 455 | . 229 70 156 Destroy 0b10 Robot/C 300 | . 180 . 120 Destroy 0b10 Robot/NC 15 | . 5 5 5 Destroy Leader 62 | . 32 . 30 Successful Hack 12 | . 12 . . Disable Machine 30 | . . 30 . Destroy Structure 36 | . . 35 1 Influence Decreases 455 | . 229 60 166 Entered New Map 7 | . . . 7 Time Decay 347 | . 229 60 58 Lost Part 101 | . . . 101 Squads Dispatched 3 | . . 2 1 Investigation . | . . . . Extermination . | . . . . Reinforcement 3 | . . 2 1 Assault . | . . . . Garrison . | . . . . Intercept . | . . . . Searches Triggered . | . . . . Construction Impeded 1 | . . 1 . Haulers Reinforced . | . . . . Active Scanning Responses . | . . . . Cargo Convoy Interrupts . | . . . . Stealth | -11 -10 -9 -9 --------- Run | Yrd Mat Mat Sto Distress Signals 3 | . 2 . 1 Communications Jammed . | . . . . Distress Signals . | . . . . Times Spotted 32 | . 14 5 13 Peak Tracking Total 9 | . 5 3 9 Tactical Retreats . | . . . . Traps | -11 -10 -9 -9 ------- Run | Yrd Mat Mat Sto Traps Triggered 1 | . . . 1 Indirectly . | . . . . Trap Hack Attempts . | . . . . Triggered . | . . . . Disarmed . | . . . . Reprogrammed . | . . . . Reused . | . . . . Traps Extracted . | . . . . Installed . | . . . . Triggered . | . . . . Machines | -11 -10 -9 -9 ---------- Run | Yrd Mat Mat Sto Machines Disabled 2 | . . 2 . Max in Single Turn 2 | . . 2 . Machines Repaired . | . . . . Machines Dismantled . | . . . . Machines Sabotaged . | . . . . Overloaded Fab Kills . | . . . . Hacking | -11 -10 -9 -9 --------- Run | Yrd Mat Mat Sto Machines Accessed 2 | . 2 . . Terminals 1 | . 1 . . Fabricators . | . . . . Repair Stations 1 | . 1 . . Recycling Units . | . . . . Scanalyzers . | . . . . Garrison Access . | . . . . Total Hacks 5 | . 5 . . Successful 4 | . 4 . . Failed 1 | . 1 . . Catastrophic . | . . . . Database Lockouts . | . . . . Manual . | . . . . Terminals 3 | . 3 . . Fabricators . | . . . . Repair Stations 2 | . 2 . . Recycling Units . | . . . . Scanalyzers . | . . . . Garrison Access . | . . . . Terminal Hacks 2 | . 2 . . Registered Components 1 | . 1 . . Zone Layout 1 | . 1 . . Fabricator Hacks . | . . . . Repair Station Hacks 2 | . 2 . . Scan Component 1 | . 1 . . Repair 1 | . 1 . . Recycling Unit Hacks . | . . . . Scanalyzer . | . . . . Garrison Access Hacks . | . . . . Unauthorized Hacks . | . . . . Terminals . | . . . . Fabricators . | . . . . Repair Stations . | . . . . Recycling Units . | . . . . Scanalyzers . | . . . . Garrison Access . | . . . . Data Cores Recovered . | . . . . Used . | . . . . Hacking Detections . | . . . . Full Trace Events . | . . . . Feedback Events . | . . . . Feedback Blocked . | . . . . Robot Schematics Acquired . | . . . . Robots Built . | . . . . Authchips . | . . . . Time . | . . . . Total Robot Build Rating . | . . . . Part Schematics Acquired . | . . . . Parts Built . | . . . . Authchips . | . . . . Time . | . . . . Total Part Build Rating . | . . . . Part Studies Acquired . | . . . . Parts Repaired 1 | . 1 . . Time 26 | . 26 . . Parts Recycled . | . . . . Recycled Matter . | . . . . Retrieved Matter . | . . . . Retrieved Components . | . . . . Parts Scanalyzed . | . . . . Part Schematics Acquired . | . . . . Parts Damaged . | . . . . Bothacking | -11 -10 -9 -9 ------------ Run | Yrd Mat Mat Sto Used RIF Installer . | . . . . Robots Hacked . | . . . . Non-combat . | . . . . Combat . | . . . . Robot Hacks Applied . | . . . . Relay Couplers Released . | . . . . Fabnet Peak Effective % . | . . . . Robots Rewired . | . . . . Allies Hacked . | . . . . Hacks Repelled . | . . . . Allies | -11 -10 -9 -9 -------- Run | Yrd Mat Mat Sto Total Allies . | . . . . Largest Group . | . . . . Highest-Rated Group . | . . . . Highest-Rated Ally . | . . . . Total Orders . | . . . . Ally Attacks . | . . . . Total Damage . | . . . . Kills . | . . . . Allies Corrupted . | . . . . Allies Melted . | . . . . Intel | -11 -10 -9 -9 ------- Run | Yrd Mat Mat Sto Active Infowar (turns) 34 | . . . 34 Structural 34 | . . . 34 Robot Analysis Total . | . . . . Derelict Logs Recovered . | . . . . Drone Launches . | . . . . Drone Recoveries . | . . . . Exploration | -11 -10 -9 -9 ------------- Run | Yrd Mat Mat Sto Turns Passed 1460 | 75 715 380 290 Spaces Moved 490 | 41 317 82 50 Core 26 | 15 . . 11 Treads 464 | 26 317 82 39 Legs . | . . . . Wheels . | . . . . Hover . | . . . . Flight . | . . . . Fastest Speed 50 | 50 160 160 100 Average Speed 158 | 151 160 160 156 Slowest Speed 200 | 160 160 160 200 Overloaded Moves . | . . . . Propulsion Burnouts . | . . . . Robots Hopped . | . . . . Potential Cave-ins . | . . . . Cave-ins Triggered . | . . . . Exploration Rate (%) 21 | 4 57 11 15 Regions Visited 3 Branch Regions 1 Pre-discovered Areas . | . . . . Known Exits Taken . | . . . . Unknown Exits Taken 3 | 1 1 1 . Scrap Searched . | . . . . Spaces Dug . | . . . . Terrain Destroyed 39 | . . 39 . Melee . | . . . . Projectile . | . . . . AOE 39 | . . 39 . Terrain Rammed . | . . . . Walls Destroyed . | . . . . Machines Disabled . | . . . . Actions | -11 -10 -9 -9 --------- Run | Yrd Mat Mat Sto Total 1058 | 54 466 318 220 Wait 457 | . 100 227 130 Move 487 | 40 316 81 50 Hop . | . . . . Pick Up 18 | 7 10 . 1 Fast Attach . | . . . . Attach 17 | 6 2 2 7 Detach . | . . . . Swap 1 | 1 . . . Drop 3 | . 1 . 2 Fire 69 | . 37 8 24 Melee . | . . . . Ram 5 | . . . 5 Kick . | . . . . Crush 1 | . . . 1 Escape Stasis . | . . . . Rewire . | . . . . Trap . | . . . . Miscellaneous . | . . . . Route ------- -11/Scrapyard -10/Materials (discovered 2 exits: [*Mat] / [Min]) -9/Materials -9/Storage History --------- Turn | Location | Event 12 | -11/Scrapyard | Discovered new exit (range 15) 76 | -11/Scrapyard | Entered Materials 310 | -10/Materials | Build established: Mutant 398 | -10/Materials | Repaired Lgt. Treads 541 | -10/Materials | Discovered new exit (range 10) 768 | -10/Materials | Discovered new exit (range 13) 791 | -10/Materials | Entered another Materials area 791 | -9/Materials | Evolved 2 slots: Utility x2 1144 | -9/Materials | Discovered new exit (range 12) 1171 | -9/Materials | Entered Storage 1417 | -9/Storage | Core integrity fell below 50% 1423 | -9/Storage | Core integrity fell below 20% 1449 | -9/Storage | Lost 9 parts (1p2n4u2w) 1461 | -9/Storage | Destroyed by S-10 Pest with Light Assault Rifle Last Messages --------------- 01443_ G-34 Mercenary heat short circuits Aluminum Leg. 01446_ G-34 Mercenary heat short circuits Ion Engine. 01449_ Lgt. Treads destroyed. 01450_ G-34 Mercenary heat damages Broken Aluminum Leg, Backup Plating I, Aluminum Leg, Sml. Laser. 01453_ O-16 Technician: "IFF HANDSHAKE FAILED. SECURING TERMINAL." 01454_ O-16 Technician uses terminal to summon reinforcements. 01454_ ALERT: Hostiles spotted, dispatching reinforcements to Terminal S004. 01454_ O-16 Technician locks terminal. 01455_ M-13 Machinist destroyed. 01455_ Lgt. Ion Engine destroyed. 01458_ R-06 Scavenger collects Wheel. 01460_ A-02 Transporter destroyed. 01460_ R-06 Scavenger collects Lgt. Ion Engine. Map ----- +----------------------------------------------------+ | | | | | | | | | | | | | | | | | | | | | | | | | | | | | | | | | #######??????????????????????????????????????????? | | #?????????????????????????????????????????? | | #?????????????????????????????????????????? | | #?????????????????????????????????????????? | | "Y" #???????????"?????????????????????????????? | | """ #????????? ?????######## ????????????????? | | % % # ########### ????????????????? | | ####"#########+########### # ????????????????? | | %% =% s " # ????????????????? | | r !Y]rs @ "T + ????????????????? | | s*]%]] g o # ????????????????? | | ######+########### # ????????????????? | | # T ###### #### ????????????????? | | + """ !! ###### #### ????????????????? | | ##### """ ! ##??? ##???????????????????? | | ##### """ ###??? ##???????????????????? | | #??## ###??? ##???????????????????? | | #??################???? ##???????????????????? | | ?? ???? ???????????????????? | | ?????????????????????? ????????????????????? | | ????????????????????? ???????????????????? | | ## ####????????????????????###???????????????????? | | ?#+#??????????????????????? #???????????????????? | | ?? ?????????????????????????????????????????????? | | ?? "?????????????????????????????????????????????? | | ?????????????????????????????????????????????????? | | ?????????????????????????????????????????????????? | | ?????????????????????????????????????????????????? | | ?????????????????????????????????????????????????? | | ?????????????????????????????????????????????????? | | ?????????????????????????????????????????????????? | | ?????????????????????????????????????????????????? | | ?????????????????????????????????????????????????? | | ?????????????????????????????????????????????????? | +----------------------------------------------------+ Best States ------------- Heat Dissipation 42 Energy Generation 10 Energy Capacity 250 Matter Stores 249 Matter Capacity 300 Sight Range 16 Terrain Scan Density 10 Armor Coverage 150 Evasion (%) 40 Targeting Accuracy 10 Recoil Reduction 2 Item Schematics ----------------- None Robot Schematics ------------------ None Fabricated ------------ Nothing Repaired ---------- Lgt. Treads | 27% | -10/Materials Studied --------- None Alien Tech Used ----------------- None Achievements -------------- None Challenges ------------ None Game ------ Seed PoweredBiomechanicalScrap Manual? 0 Play Time 00:18:55 Cumulative 10.9 hours Start 2026.07.10 @ 11:34:02 End 2026.07.10 @ 12:01:59 Sessions 1 Manual Loads 0 Difficulty Rogue Special Mode None Game No. 18 Rogue 18 Adventurer 0 Explorer 0 Win Type - Total 0 Types 0/0/0/0/0/0/0/0/0/0 Lore% 1 Gallery% 11 Achievement% 11 Wizard Run 0 Options --------- Layout 1 ASCII 0 Keyboard 0 Movement Mouse Keybinds 0 Fullscreen 1 Font 16/SmallcapsGlow Map View 50x40 Zoom Use 0% Tactical HUD 1 Map Filters NONE Filters NONE Steam 1 RUN: 7fcb6b20-4e6b-4be5-b0e6-1ba66db8e935